bitfinex-derivatives/quotes_ETHF0:USTF0_20250629
["timestamp","ask_amount","ask_price","bid_price","bid_amount"]
[1751215807405,0.65697,2434.6,2434.5,32.0975]
[1751215807899,0.65697,2434.6,2434.5,31.39]
[1751215808107,0.65703,2434.4,2434.3,3.2078]
[1751215808309,0.65703,2434.4,2434.3,28.1828]
[1751215810615,0.65703,2434.4,2434.3,24.975]
[1751215811111,6.23718328,2434.6,2434.3,24.973]
[1751215811308,0.65704,2434.4,2434.3,24.973]
[1751215811707,1.35774,2434.4,2434.3,24.973]
[1751215812616,2.08194,2434.4,2434.3,24.973]
[1751215812819,5.11132328,2434.4,2434.3,24.973]
[1751215813110,5.11132328,2434.4,2434.0,0.7075]
[1751215813111,0.65712,2434.1,2434.0,0.7075]
[1751215813312,0.65714,2434.0,2433.9,3.2078]
[1751215813519,0.65712,2434.1,2434.0,24.969]
[1751215814920,0.65711,2434.2,2434.0,24.969]
[1751215815224,0.65712,2434.1,2434.0,24.969]
[1751215815607,0.65711,2434.2,2434.0,24.969]
[1751215816013,0.65712,2434.1,2434.0,24.969]
[1751215816615,0.65711,2434.2,2434.0,24.969]
[1751215816818,0.65712,2434.1,2434.0,24.969]
[1751215818525,0.65711,2434.2,2434.0,24.969]
[1751215818826,0.99327597,2434.1,2434.0,24.969]
[1751215819425,1.65039597,2434.1,2434.0,24.969]
[1751215821028,1.65039597,2434.1,2434.0,25.62614]
[1751215821029,0.99327597,2434.1,2434.0,25.62614]
[1751215821219,0.99327597,2434.1,2434.0,26.96164]
[1751215823728,1.65039597,2434.1,2434.0,26.3045]
[1751215824325,0.99327597,2434.1,2434.0,26.96164]
[1751215824526,1.65039597,2434.1,2434.0,26.96164]
[1751215825232,0.99327597,2434.1,2434.0,26.96164]
[1751215826327,0.99327597,2434.1,2434.0,30.16944]
[1751215828930,1.65039597,2434.1,2434.0,3.2078]
[1751215829124,2.37469597,2434.1,2434.0,28.1418]
[1751215829324,1.71757597,2434.1,2434.0,28.79894]
[1751215830130,1.71757597,2434.1,2434.0,3.86494]
[1751215830329,5.40407925,2434.1,2434.0,3.2078]
[1751215830524,7.54927925,2434.1,2434.0,3.2078]
[1751215831934,3.10279597,2434.1,2434.0,3.2078]
[1751215832128,2.44567597,2434.1,2434.0,3.2078]
[1751215832322,2.44567597,2434.1,2434.0,3.86494]
[1751215832635,1.71757597,2434.1,2434.0,28.1688]
[1751215833328,2.37469597,2434.1,2434.0,28.1688]
[1751215833922,0.99327597,2434.1,2434.0,28.1688]
[1751215834127,1.65039597,2434.1,2434.0,29.6257]
[1751215834630,0.99327597,2434.1,2434.0,29.6257]
[1751215835333,1.65039597,2434.1,2434.0,29.6257]
[1751215837929,1.65039597,2434.1,2434.0,28.1688]
[1751215838933,1.65039597,2434.1,2434.0,28.1598]
[1751215842340,0.99327597,2434.1,2434.0,28.81694]
[1751215842835,0.99327597,2434.1,2434.0,30.219]
[1751215843036,0.99327597,2434.1,2434.0,30.87614]
[1751215849837,0.99327597,2434.1,2434.0,33.90552328]
[1751215856349,0.65704,2434.4,2434.3,0.65706]
[1751215856546,1.64771789,2434.4,2434.3,25.58206]
[1751215859148,0.99067789,2434.4,2434.3,25.58206]
[1751215859853,0.99067789,2434.4,2434.3,28.78986]
[1751215860054,0.99067789,2434.4,2434.3,30.17006]
[1751215862967,1.36964,2434.8,2434.6,0.65698]
[1751215863163,1.64734352,2434.7,2434.5,7.04999]
[1751215863368,0.65696,2434.7,2434.6,24.923]
[1751215863568,1.6471155,2434.7,2434.6,24.923]
[1751215863868,1.6471155,2434.7,2434.6,25.57998]
[1751215864069,1.6471155,2434.7,2434.6,24.923]
[1751215867068,1.6471255,2434.7,2434.6,24.922]
[1751215867268,3.0399255,2434.7,2434.6,24.922]
[1751215868060,0.65703,2434.5,2434.3,3.2078]
[1751215868369,0.6953,2434.4,2434.3,3.2078]
[1751215868559,1.35234,2434.4,2434.3,28.1298]
[1751215868964,0.6953,2434.4,2434.3,28.1298]
[1751215870365,1.35234,2434.4,2434.3,3.2078]
[1751215870572,1.35234,2434.4,2434.3,28.1288]
[1751215872974,0.6953,2434.4,2434.3,28.1288]
[1751215873876,0.6953,2434.4,2434.3,28.78586]
[1751215874578,0.65699,2434.6,2434.4,0.65702]
[1751215874874,0.65699,2434.6,2434.5,24.92]
[1751215875273,0.98951881,2434.6,2434.5,25.57701]
[1751215875978,0.98951881,2434.6,2434.5,27.73011]
[1751215876170,0.98951881,2434.6,2434.5,34.12311]
[1751215876370,0.65696,2434.7,2434.6,0.65697]
[1751215876567,1.64662118,2434.7,2434.6,3.2078]
[1751215879683,0.98966118,2434.7,2434.6,3.2078]
[1751215880381,1.64662118,2434.7,2434.6,3.2078]
[1751215881082,0.98966118,2434.7,2434.6,3.86478]
[1751215881971,1.64662118,2434.7,2434.6,3.2078]
[1751215882581,0.98966118,2434.7,2434.6,3.86478]
[1751215882882,0.98966118,2434.7,2434.6,6.89416328]
[1751215883083,0.98966118,2434.7,2434.6,9.64556328]
[1751215890393,0.65689,2435.0,2434.6,8.98858328]
[1751215890690,0.98636362,2434.9,2434.8,3.86473]
[1751215891084,0.98636362,2434.9,2434.8,5.23533]
[1751215893196,0.98636362,2434.9,2434.8,8.26471328]
[1751215893389,3.2078,2435.3,2434.8,13.99778328]
[1751215893390,3.86462,2435.3,2434.8,13.99778328]
[1751215893581,0.98599156,2435.2,2435.1,0.65685]
[1751215893786,0.98599156,2435.2,2435.1,28.60223328]
[1751215894193,0.98599156,2435.2,2435.1,29.95583328]
[1751215899085,0.98599156,2435.2,2435.1,36.34583328]
[1751215899290,0.726,2435.5,2435.3,0.65678]
[1751215899490,1.38275,2435.5,2435.4,24.912]
[1751215900094,0.726,2435.5,2435.4,25.56877]
[1751215902500,0.726,2435.5,2435.4,24.912]
[1751215902702,0.726,2435.5,2435.4,25.56877]
[1751215905901,1.38274,2435.5,2435.4,24.912]
[1751215907193,0.726,2435.5,2435.4,24.912]
[1751215907398,1.38274,2435.5,2435.4,24.912]
[1751215907601,4.41212328,2435.5,2435.4,24.912]
[1751215908099,4.41212328,2435.5,2435.2,0.65682]
[1751215908100,0.65678,2435.4,2435.3,24.908]
[1751215909206,0.6568,2435.3,2435.1,3.2078]
[1751215909408,0.6568,2435.3,2435.2,31.297]
[1751215910197,0.65679,2435.4,2435.2,31.297]
[1751215910397,0.65679,2435.4,2435.2,31.95382]
[1751215912698,3.02938328,2435.5,2435.2,31.297]
[1751215912900,0.65673,2435.6,2435.4,0.65676]
[1751215913100,0.65674,2435.5,2435.4,0.65676]
[1751215913708,0.65674,2435.5,2435.3,0.65678]
[1751215914907,0.65677,2435.4,2435.2,31.9538]
[1751215915103,0.6704,2435.7,2435.2,31.297]
[1751215915104,0.65676,2435.5,2435.2,31.297]
[1751215915299,0.65673,2435.6,2435.4,0.65677]
[1751215915494,0.65673,2435.6,2435.5,24.906]
[1751215915703,1.63422259,2435.6,2435.5,24.906]
[1751215916908,1.63422259,2435.6,2435.5,25.56274]
[1751215917502,1.63422259,2435.6,2435.5,24.906]
[1751215919210,0.97749259,2435.6,2435.5,24.906]
[1751215919510,1.63420259,2435.6,2435.5,24.906]
[1751215921003,0.97749259,2435.6,2435.5,24.906]
[1751215921210,0.97749259,2435.6,2435.5,25.56274]
[1751215921812,0.97749259,2435.6,2435.5,26.95484]
[1751215923117,1.63420259,2435.6,2435.5,26.95484]
[1751215923309,0.97749259,2435.6,2435.5,26.95484]
[1751215925215,1.63420259,2435.6,2435.5,26.95484]
[1751215925615,0.97749259,2435.6,2435.5,26.95484]
[1751215926309,0.97749259,2435.6,2435.5,36.36922328]
[1751215929320,0.97749259,2435.6,2435.5,33.33984]
[1751215929817,0.97749259,2435.6,2435.5,33.33484]
[1751215934620,0.97749259,2435.6,2435.5,36.54264]
[1751215934814,0.6987,2435.9,2435.8,0.65666]
[1751215935023,5.65733976,2436.1,2436.0,0.65661]
[1751215935215,5.65733976,2436.1,2436.0,25.55561]
[1751215936317,3.2078,2436.1,2436.0,25.55561]
[1751215936521,3.2078,2436.1,2436.0,24.899]
[1751215936522,3.86438,2436.1,2436.0,24.899]
[1751215936725,3.2078,2436.1,2436.0,25.55561]
[1751215937119,3.86438,2436.1,2436.0,24.899]
[1751215937522,0.65663,2435.9,2435.8,0.6786]
[1751215937722,0.65666,2435.8,2435.7,0.65668]
[1751215937920,0.65665,2435.9,2435.7,31.93869]
[1751215938427,0.65665,2435.9,2435.7,0.65667]
[1751215938624,0.65665,2435.9,2435.8,31.282]
[1751215939625,0.65665,2435.9,2435.7,0.65667]
[1751215939926,1.35643,2436.0,2435.8,31.93866]
[1751215940325,0.65663,2435.9,2435.8,31.93866]
[1751215941120,0.6998,2436.0,2435.9,0.65663]
[1751215941722,0.6998,2436.0,2435.8,35.68022328]
[1751215941915,0.6998,2436.0,2435.9,0.65663]
[1751215942826,1.35641,2436.0,2435.8,35.68022328]
[1751215943129,1.35641,2436.0,2435.9,0.65663]
[1751215943328,0.6998,2436.0,2435.9,0.65663]
[1751215943527,1.35641,2436.0,2435.9,0.65663]
[1751215943726,1.35641,2436.0,2435.8,35.68023328]
[1751215943928,0.65663,2435.9,2435.8,35.68023328]
[1751215944118,1.35642,2436.0,2435.8,35.68023328]
[1751215944525,0.65663,2435.9,2435.8,9.41438328]
[1751215944725,0.65663,2435.9,2435.8,34.30938328]
[1751215945432,1.35642,2436.0,2435.8,31.93666]
[1751215946732,0.97316089,2435.9,2435.8,31.93666]
[1751215947033,1.62979089,2435.9,2435.8,31.28]
[1751215947234,1.62979089,2435.9,2435.7,0.65667]
[1751215947533,0.65666,2435.8,2435.6,3.73618328]
[1751215947831,0.65665,2435.9,2435.7,31.93569]
[1751215948326,3.2078,2436.1,2436.0,0.65661]
[1751215948632,4.18097657,2436.1,2436.0,28.57999328]
[1751215950429,4.83755657,2436.1,2436.0,27.92338328]
[1751215950642,1.62975657,2436.1,2436.0,27.92338328]
[1751215951328,1.62975657,2436.1,2436.0,24.894]
[1751215959932,0.97317657,2436.1,2436.0,24.894]
[1751215960133,1.62975657,2436.1,2436.0,24.894]
[1751215961038,0.97317657,2436.1,2435.8,3.2078]
[1751215961342,0.65667,2435.8,2435.6,0.65671]
[1751215961552,1.69987657,2435.7,2435.6,7.03571]
[1751215961760,1.69987657,2435.7,2435.6,31.267]
[1751215962055,1.69987657,2435.7,2435.6,6.379]
[1751215962258,0.7267,2435.7,2435.6,31.92371]
[1751215962556,2.35773255,2435.7,2435.6,31.267]
[1751215963256,0.65671,2435.6,2435.4,10.82023784]
[1751215963452,0.7267,2435.7,2435.5,33.72580456]
[1751215963649,0.65671,2435.6,2435.5,6.379]
[1751215963851,1.39001,2435.6,2435.5,31.267]
[1751215964360,2.36477631,2435.6,2435.5,31.267]
[1751215966155,2.36477631,2435.6,2435.4,5.66660456]
[1751215966156,0.65674,2435.5,2435.4,5.66660456]
[1751215966361,0.65674,2435.5,2435.4,34.4758]
[1751215967759,0.65677,2435.4,2435.3,2.45880456]
[1751215967955,0.65677,2435.4,2435.3,33.72680456]
[1751215968660,0.65677,2435.4,2435.3,2.45880456]
[1751215968853,0.65677,2435.4,2435.3,33.72680456]
[1751215969768,0.65677,2435.4,2435.3,2.45880456]
[1751215969969,0.65677,2435.4,2435.3,27.34780456]
[1751215970463,0.65677,2435.4,2435.3,24.889]
[1751215972964,8.34658328,2435.6,2435.3,24.889]
[1751215973154,0.65677,2435.5,2435.3,25.54579]
[1751215973354,0.65677,2435.5,2435.3,24.889]
[1751215973557,1.34367,2435.4,2435.3,24.889]
[1751215974868,0.6568,2435.3,2435.2,8.83880456]
[1751215975167,0.6869,2435.4,2435.2,33.72780456]
[1751215975556,0.6869,2435.4,2435.3,0.6568]
[1751215976863,3.86451,2435.6,2435.5,0.65674]
[1751215977062,3.86451,2435.6,2435.5,25.54574]
[1751215977063,4.18050174,2435.6,2435.5,25.54574]
[1751215978067,3.8981,2435.9,2435.5,25.54574]
[1751215978266,0.65671,2435.6,2435.5,25.54574]
[1751215978968,0.65671,2435.7,2435.5,25.54574]
[1751215979468,0.65671,2435.7,2435.6,0.65671]
[1751215979870,0.97260758,2435.7,2435.6,0.65671]
[1751215980071,0.97260758,2435.7,2435.6,2.03441]
[1751215981071,4.55475,2435.9,2435.7,0.65666]
[1751215981370,0.97250551,2435.8,2435.7,31.36197328]
[1751215984860,0.97250551,2435.8,2435.7,27.64209]
[1751215985067,1.66100551,2435.8,2435.7,27.64209]
[1751215986971,1.66100551,2435.8,2435.7,34.01509]
[1751215987578,0.97250551,2435.8,2435.7,37.04447328]
[1751215987770,0.97250551,2435.8,2435.7,5.78447328]
[1751215987967,0.97250551,2435.8,2435.7,37.04347328]
[1751215993180,1.62916551,2435.8,2435.7,36.38678328]
[1751215993681,0.97250551,2435.8,2435.7,37.04347328]
[1751215995787,3.2078,2436.2,2436.1,0.65658]
[1751215995991,3.2078,2436.2,2436.1,28.56596328]
[1751215996690,3.2078,2436.2,2436.1,27.7539]
[1751215996988,0.65661,2436.0,2435.9,6.374]
[1751215997193,0.65661,2436.0,2435.9,31.253]
[1751215997991,0.65661,2436.0,2435.8,0.65666]
[1751215998190,0.65661,2436.0,2435.9,24.879]
[1751215998493,0.65663,2435.9,2435.8,6.374]
[1751215998688,0.65663,2435.9,2435.8,31.252]
[1751215999593,3.72208328,2436.0,2435.8,24.878]
[1751215999793,2.10163,2435.9,2435.8,24.878]
[1751216002589,0.65663,2435.9,2435.8,24.878]
[1751216005703,0.65663,2435.9,2435.6,0.6567]
[1751216005898,0.65666,2435.8,2435.7,24.878]
[1751216006909,3.72208328,2436.0,2435.5,3.75498328]
[1751216007108,0.65671,2435.6,2435.5,6.375]
[1751216007297,0.65671,2435.6,2435.5,31.252]
[1751216007699,1.62355337,2435.6,2435.5,31.252]
[1751216009601,1.62355337,2435.6,2435.3,3.74108328]
[1751216009602,0.96684337,2435.6,2435.3,3.74108328]
[1751216009812,0.65676,2435.5,2435.4,24.877]
[1751216012406,0.6568,2435.3,2435.2,6.375]
[1751216012607,0.6568,2435.3,2435.2,31.252]
[1751216012808,0.65679,2435.4,2435.2,31.252]
[1751216013408,0.65679,2435.4,2435.2,31.90882]
[1751216013903,0.6568,2435.3,2435.2,6.375]
[1751216014107,0.65678,2435.4,2435.2,31.90881]
[1751216014604,0.6568,2435.3,2435.2,31.252]
[1751216014803,1.3766,2435.3,2435.2,31.252]
[1751216015206,0.7198,2435.3,2435.2,31.252]
[1751216015404,0.7198,2435.3,2435.2,31.90882]
[1751216016402,0.7198,2435.3,2435.2,33.27442]
[1751216017414,0.7198,2435.3,2435.2,32.6176]
[1751216018813,0.7198,2435.3,2435.2,1.3656]
[1751216019112,0.7198,2435.3,2435.2,26.89842]
[1751216019307,0.7198,2435.3,2435.2,24.876]
[1751216019514,0.65685,2435.1,2435.0,53.665]
[1751216020014,0.65685,2435.1,2435.0,31.246]
[1751216022016,0.65685,2435.1,2435.0,31.247]
[1751216022813,0.7198,2435.3,2435.0,31.90387]
[1751216023016,0.96632234,2435.2,2435.0,31.90387]
[1751216023209,0.65683,2435.2,2435.0,36.28795328]
[1751216024209,0.65685,2435.1,2435.0,35.63108328]
[1751216025209,0.65688,2435.0,2434.9,6.371]
[1751216025420,1.38568,2435.0,2434.9,6.371]
[1751216025714,1.38568,2435.0,2434.9,31.248]
[1751216026421,0.6569,2434.9,2434.8,3.2078]
[1751216026609,0.6569,2434.9,2434.8,28.0848]
[1751216027417,1.38569,2435.0,2434.8,28.0848]
[1751216028409,1.38569,2435.0,2434.8,28.74173]
[1751216028610,1.38569,2435.0,2434.8,30.86083]
[1751216028918,1.38569,2435.0,2434.8,30.2039]
[1751216029611,0.6569,2434.9,2434.8,30.2039]
[1751216030814,0.6569,2434.9,2434.8,26.9961]
[1751216031013,0.6569,2434.9,2434.8,30.2039]
[1751216033521,0.6569,2434.9,2434.8,28.0848]
[1751216034020,0.65693,2434.8,2434.7,3.02938328]
[1751216034319,0.65693,2434.8,2434.7,24.878]
[1751216035622,0.65693,2434.8,2434.6,0.65698]
[1751216035921,0.65693,2434.8,2434.7,24.877]
[1751216036117,0.65692,2434.9,2434.7,25.53395]
[1751216036324,0.65692,2434.9,2434.7,26.91445]
[1751216036524,0.65692,2434.9,2434.7,29.94383328]
[1751216036825,12.36721328,2435.3,2435.1,0.65683]
[1751216036826,0.65681,2435.3,2435.1,0.65683]
[1751216037018,0.65681,2435.3,2435.2,27.90638328]
[1751216037220,1.62038603,2435.3,2435.2,27.90638328]
[1751216038026,1.62038603,2435.3,2435.2,28.56320328]
[1751216038027,0.96357603,2435.3,2435.2,28.56320328]
[1751216038218,0.96357603,2435.3,2435.2,30.65880328]
[1751216039023,1.62037603,2435.3,2435.2,26.9716]
[1751216040617,1.62037603,2435.3,2435.2,25.5835]
[1751216040819,1.62037603,2435.3,2435.2,24.876]
[1751216041824,0.96357603,2435.3,2435.2,25.53282]
[1751216042025,0.96357603,2435.3,2435.2,26.98892]
[1751216046528,1.62037603,2435.3,2435.2,26.98892]
[1751216046825,0.96357603,2435.3,2435.2,26.98892]
[1751216052537,2.44953976,2435.9,2435.8,0.65666]
[1751216052732,2.44953976,2436.0,2435.9,0.65663]
[1751216052927,2.44953976,2436.1,2436.0,0.65661]
[1751216053131,2.44953976,2436.1,2436.0,8.22319328]
[1751216054138,2.44953976,2436.2,2436.1,0.65658]
[1751216054338,2.44953976,2436.2,2436.1,26.89688]
[1751216054732,2.44953976,2436.2,2436.1,26.2403]
[1751216055030,3.10608976,2436.2,2436.1,26.2403]
[1751216056338,0.65655,2436.2,2436.1,26.2403]
[1751216059241,0.65653,2436.3,2436.1,26.89688]
[1751216059446,1.38942,2436.4,2436.1,26.89688]
[1751216059736,6.23718328,2436.7,2436.5,0.65646]
[1751216059737,3.2078,2436.7,2436.5,0.65646]
[1751216059944,4.53523,2436.7,2436.6,24.863]
[1751216064033,3.8788,2436.7,2436.6,25.51944]
[1751216064238,0.671,2436.7,2436.6,28.54882328]
[1751216064648,0.671,2436.7,2436.6,31.75662328]
[1751216065352,0.671,2436.7,2436.6,38.12162328]
[1751216066947,0.65629,2437.2,2437.0,0.65632]
[1751216067150,0.6629,2437.2,2437.1,24.858]
[1751216067342,1.31918,2437.2,2437.1,24.858]
[1751216068842,0.6629,2437.2,2437.1,24.858]
[1751216069139,0.6629,2437.2,2437.1,28.54369328]
[1751216069541,0.6629,2437.2,2437.1,29.92639328]
[1751216070441,3.2078,2437.6,2437.1,29.27008328]
[1751216070643,1.36548,2437.6,2437.5,3.02938328]
[1751216070842,0.6562,2437.5,2437.4,3.2078]
[1751216071145,1.36549,2437.6,2437.4,28.0628]
[1751216071341,0.6562,2437.5,2437.4,28.0628]
[1751216071538,0.7093,2437.6,2437.5,0.6562]
[1751216071743,0.7093,2437.6,2437.5,3.68558328]
[1751216072144,0.7093,2437.6,2437.5,10.04858328]
[1751216072748,0.7093,2437.6,2437.5,9.39238328]
[1751216073050,0.7093,2437.6,2437.5,10.04858328]
[1751216074057,0.7093,2437.6,2437.5,9.39238328]
[1751216075343,1.36548,2437.6,2437.5,9.39238328]
[1751216077151,0.7093,2437.6,2437.5,9.39238328]
[1751216077452,0.7093,2437.6,2437.5,10.04858328]
[1751216077951,3.2078,2438.0,2437.5,9.39238328]
[1751216078153,0.65615,2437.7,2437.6,24.847]
[1751216078353,1.4421,2437.9,2437.6,24.847]
[1751216078552,0.65615,2437.7,2437.6,24.847]
[1751216080153,0.65618,2437.6,2437.5,6.358]
[1751216080345,0.65618,2437.6,2437.5,31.204]
[1751216080541,0.65616,2437.7,2437.5,31.8602]
[1751216081058,0.65614,2437.8,2437.5,31.8602]
[1751216081355,0.95155577,2437.7,2437.5,31.86019]
[1751216081647,0.65614,2437.8,2437.6,0.65617]
[1751216081853,0.65614,2437.8,2437.7,24.846]
[1751216082047,1.60769526,2437.8,2437.7,24.846]
[1751216086354,0.65614,2437.8,2437.7,24.846]
[1751216089954,0.65618,2437.6,2437.5,3.2078]
[1751216090155,0.65618,2437.6,2437.5,31.198]
[1751216094960,0.65618,2437.6,2437.5,6.357]
[1751216095159,0.65618,2437.6,2437.5,31.197]
[1751216096055,1.61470436,2437.6,2437.5,31.197]
[1751216096572,0.65623,2437.4,2437.2,3.873]
[1751216096773,0.65623,2437.4,2437.3,31.196]
[1751216098275,1.35572,2437.5,2437.3,31.85225]
[1751216098475,1.35572,2437.5,2437.3,33.22675]
[1751216099476,0.65623,2437.4,2437.3,32.5705]
[1751216099872,1.35572,2437.5,2437.3,33.22676]
[1751216101382,0.65623,2437.4,2437.3,32.5705]
[1751216101873,0.65623,2437.4,2437.3,7.7315]
[1751216102070,1.35572,2437.5,2437.3,32.5705]
[1751216103580,0.65623,2437.4,2437.3,32.5705]
[1751216103876,1.35572,2437.5,2437.3,32.5705]
[1751216105477,0.65623,2437.4,2437.3,32.5705]
[1751216106377,0.6995,2437.5,2437.3,32.5705]
[1751216106578,0.65621,2437.5,2437.4,3.02938328]
[1751216106774,0.65621,2437.5,2437.4,4.45238328]
[1751216106977,1.61585006,2437.6,2437.4,4.45238328]
[1751216107281,1.61586006,2437.5,2437.4,4.45238328]
[1751216107479,0.6562,2437.5,2437.4,29.29038328]
[1751216109385,0.6562,2437.5,2437.4,24.838]
[1751216109583,0.65624,2437.4,2437.2,9.35225784]
[1751216109783,0.65623,2437.4,2437.3,31.194]
[1751216111787,0.65622,2437.5,2437.3,31.85026]
[1751216112287,0.65623,2437.4,2437.3,31.194]
[1751216112985,0.65623,2437.4,2437.3,31.85026]
[1751216113892,0.65623,2437.4,2437.3,31.194]
[1751216114183,0.65626,2437.3,2437.2,12.02060456]
[1751216114385,0.65626,2437.3,2437.2,38.32350456]
[1751216114584,0.65626,2437.3,2437.2,35.8647]
[1751216115087,1.61696654,2437.3,2437.2,35.8647]
[1751216115888,1.61696654,2437.3,2437.2,32.6569]
[1751216117689,0.65624,2437.4,2437.2,35.77198456]
[1751216118483,0.65626,2437.3,2437.2,35.11570456]
[1751216118688,0.65625,2437.4,2437.2,35.77198456]
[1751216119688,0.65626,2437.3,2437.2,38.97978456]
[1751216119991,0.65626,2437.3,2437.2,38.32350456]
[1751216120191,0.65625,2437.4,2437.2,38.97978456]
[1751216120390,0.65625,2437.4,2437.3,3.02938328]
[1751216120595,0.65625,2437.4,2437.3,4.49268328]
[1751216120796,1.61711847,2437.4,2437.3,4.49268328]
[1751216121493,0.96086847,2437.4,2437.3,5.14894328]
[1751216121690,1.61705847,2437.6,2437.4,0.65621]
[1751216121894,0.65619,2437.6,2437.5,24.834]
[1751216122192,1.61712929,2437.6,2437.5,24.834]
[1751216122894,0.96093929,2437.6,2437.5,28.51958328]
[1751216123294,0.96093929,2437.6,2437.5,34.59548328]
[1751216128707,0.65609,2438.0,2437.8,0.65612]
[1751216128897,0.65609,2438.0,2437.9,24.831]
[1751216131907,2.09889,2438.0,2437.9,24.831]
[1751216132104,0.65615,2437.7,2437.6,6.353]
[1751216132305,0.65615,2437.7,2437.6,31.182]
[1751216132906,0.65616,2437.7,2437.6,31.182]
[1751216133909,0.65614,2437.8,2437.6,31.83818]
[1751216134412,0.65615,2437.7,2437.6,31.182]
[1751216135614,0.65615,2437.7,2437.6,31.83818]
[1751216136312,0.65613,2437.8,2437.6,31.83818]
[1751216136712,0.65613,2437.8,2437.6,31.182]
[1751216136906,0.65615,2437.7,2437.6,31.182]
[1751216137102,0.65615,2437.7,2437.6,31.83818]
[1751216137412,0.65614,2437.8,2437.6,31.83818]
[1751216137609,0.65615,2437.7,2437.6,6.353]
[1751216138014,0.65615,2437.7,2437.6,31.18]
[1751216140416,0.65614,2437.8,2437.6,31.83618]
[1751216140715,0.95451752,2437.7,2437.6,31.83618]
[1751216142105,2.05771,2437.9,2437.7,0.65613]
[1751216142309,2.05771,2437.9,2437.8,24.826]
[1751216142510,3.012252,2437.9,2437.8,24.826]
[1751216143116,3.012252,2437.9,2437.8,25.48212]
[1751216143619,3.012252,2437.9,2437.8,24.826]
[1751216144610,2.297452,2437.9,2437.8,24.826]
[1751216145215,1.64132528,2437.9,2437.8,25.48212]
[1751216145815,2.29741528,2437.9,2437.8,25.48212]
[1751216146016,1.64132528,2437.9,2437.8,25.48212]
[1751216146219,2.29741528,2437.9,2437.8,25.48212]
[1751216146515,1.64132528,2437.9,2437.8,25.48212]
[1751216147618,2.29741528,2437.9,2437.8,25.48212]
[1751216148522,2.29741528,2437.9,2437.8,24.826]
[1751216155119,0.65612,2437.8,2437.7,3.02938328]
[1751216155321,1.61064528,2437.8,2437.7,31.17]
[1751216157626,0.95452528,2437.8,2437.7,31.82615]
[1751216159629,0.95452528,2437.8,2437.7,33.25565]
[1751216159933,1.61064528,2437.8,2437.7,33.25565]
[1751216160427,0.95452528,2437.8,2437.7,33.25565]
[1751216160931,1.61064528,2437.8,2437.7,33.25565]
[1751216161428,0.95452528,2437.8,2437.7,33.25565]
[1751216161629,1.61064528,2437.8,2437.7,33.25565]
[1751216163230,0.95452528,2437.8,2437.7,33.25565]
[1751216163629,0.95452528,2437.8,2437.7,36.28503328]
[1751216164129,0.65609,2437.9,2437.8,0.65612]
[1751216164330,0.95517973,2437.9,2437.8,2.02372]
[1751216165535,0.95517973,2437.9,2437.8,2.70752]
[1751216167331,3.86384,2438.2,2438.0,0.65606]
[1751216167630,3.86384,2438.2,2438.1,24.818]
[1751216167836,4.81857439,2438.2,2438.1,24.818]
[1751216168737,4.16253439,2438.2,2438.1,28.50342328]
[1751216169138,4.81854439,2438.2,2438.1,28.50342328]
[1751216169440,4.16253439,2438.2,2438.1,28.50342328]
[1751216169943,0.95473439,2438.2,2438.1,28.50342328]
[1751216170340,0.95473439,2438.2,2438.1,29.86902328]
[1751216171448,1.61074439,2438.2,2438.1,29.21298328]
[1751216172343,0.95473439,2438.2,2438.1,29.86902328]
[1751216172738,1.61074439,2438.2,2438.1,29.21298328]
[1751216173133,0.95473439,2438.2,2438.1,29.86902328]
[1751216178845,4.53245,2438.5,2438.3,0.65597]
[1751216179040,4.53245,2438.5,2438.4,24.813]
[1751216179246,5.48571163,2438.5,2438.4,24.813]
[1751216181447,4.81701163,2438.5,2438.4,25.46896]
[1751216182151,4.81701163,2438.5,2438.4,24.813]
[1751216182551,4.81701163,2438.5,2438.4,25.46896]
[1751216182953,4.81701163,2438.5,2438.4,24.813]
[1751216185560,0.65599,2438.3,2438.2,6.343]
[1751216185758,0.65599,2438.3,2438.2,31.153]
[1751216185961,0.67,2438.4,2438.0,3.72038328]
[1751216186256,1.32613,2438.2,2438.1,31.153]
[1751216192158,0.65605,2438.1,2437.9,6.32268456]
[1751216192350,0.65605,2438.1,2438.0,31.151]
[1751216192661,0.65605,2438.1,2438.0,31.80707]
[1751216193559,0.65605,2438.1,2438.0,0.65607]
[1751216193752,0.65605,2438.1,2438.0,31.15]
[1751216194161,0.65605,2438.1,2437.9,6.32268456]
[1751216194362,0.65605,2438.1,2438.0,31.15]
[1751216195162,0.65605,2438.1,2438.0,34.26487456]
[1751216195364,0.65605,2438.1,2438.0,33.60880456]
[1751216198760,0.6701,2438.2,2438.1,0.65604]
[1751216198972,1.62519833,2438.2,2438.1,0.65604]
[1751216199157,2.28120833,2438.2,2438.1,0.65604]
[1751216199463,1.62519833,2438.2,2438.1,0.65604]
[1751216199770,2.28120833,2438.2,2438.1,0.65604]
[1751216200070,2.28120833,2438.2,2438.0,37.29423784]
[1751216200267,1.32611,2438.2,2438.0,37.29423784]
[1751216200460,1.32611,2438.2,2438.1,0.65604]
[1751216200660,2.28131138,2438.2,2438.1,0.65604]
[1751216200860,2.28131138,2438.2,2438.0,37.29423784]
[1751216201068,1.32611,2438.2,2438.0,37.29423784]
[1751216203366,1.32611,2438.2,2438.0,34.26485456]
[1751216203668,1.32611,2438.2,2438.0,38.71553784]
[1751216203869,1.32611,2438.2,2438.1,0.65604]
[1751216204169,2.28147787,2438.2,2438.1,0.65604]
[1751216204463,0.95536787,2438.2,2438.1,0.65604]
[1751216204668,0.95536787,2438.2,2438.1,2.07734]
[1751216204969,2.02577,2438.4,2438.2,0.65599]
[1751216205170,2.02577,2438.4,2438.3,24.803]